fUST/lending_fUST_20250407
["ID","MTS","AMOUNT","RATE_DAILY","PERIOD"]
[357302585,1743999085965,-1000.0,0.00040547,90]
[357302586,1743999085976,-500.0,0.00040547,7]
[357302587,1743999085987,-500.0,0.00040547,7]
[357302588,1743999086000,-18560.06,0.00040547,7]
[357302589,1743999086013,-500.0,0.00040547,7]
[357302590,1743999086026,-8705.04,0.00040547,7]
[357302591,1743999086039,-449.61562856,0.00040634,2]
[357302592,1743999086051,-800.0,0.00040646,7]
[357302593,1743999086062,-563.9791657,0.00040654,30]
[357302594,1743999086074,-563.9791657,0.00040654,30]
[357302595,1743999086085,-563.9791657,0.00040654,30]
[357302596,1743999086095,-800.0,0.0004067,7]
[357302597,1743999086107,-753.91299545,0.00040684,2]
[357302598,1743999086118,-800.0,0.00040768,7]
[357302599,1743999086128,-563.9791657,0.00040795,30]
[357302600,1743999086139,-800.0,0.00040797,7]
[357302601,1743999086149,-325.8041756,0.00040812,30]
[357302602,1743999086159,-511.42,0.00040821,7]
[357302603,1743999086169,-500.0,0.00040821,7]
[357302604,1743999086179,-509.35,0.00040821,7]
[357302605,1743999086189,-540.93,0.00040821,7]
[357302606,1743999086203,-500.0,0.00040821,7]
[357302607,1743999086213,-704.76,0.00040821,7]
[357302608,1743999086224,-1047.59,0.00040821,7]
[357302609,1743999086234,-500.0,0.00040821,7]
[357302610,1743999086245,-500.0,0.00040821,7]
[357302611,1743999086255,-500.0,0.00040821,7]
[357302612,1743999086267,-500.0,0.00040821,7]
[357302613,1743999086278,-500.0,0.00040821,7]
[357302614,1743999086288,-1299.52,0.00040821,7]
[357302615,1743999086298,-500.0,0.00040821,7]
[357302616,1743999086308,-589.31,0.00040821,7]
[357302617,1743999086319,-961.09,0.00040821,7]
[357302618,1743999086328,-766.96,0.00040821,7]
[357302619,1743999086338,-625.42466192,0.00040821,7]
[357302620,1743999086348,-500.0,0.00040821,7]
[357302621,1743999086359,-509.80619413,0.00040821,7]
[357302622,1743999086370,-500.0,0.00040821,7]
[357302623,1743999086380,-427.75587348,0.00040821,7]
[357302624,1743999086390,-500.0,0.00040821,7]
[357302625,1743999086400,-1006.09,0.00040821,7]
[357302626,1743999086410,-500.0,0.00040821,7]
[357302627,1743999086420,-500.0,0.00040821,7]
[357302628,1743999086430,-500.0,0.00040821,7]
[357302629,1743999086441,-505.78,0.00040821,7]
[357302630,1743999086454,-694.82,0.00040821,7]
[357302631,1743999086465,-1406.25,0.00040821,7]
[357302632,1743999086476,-500.0,0.00040821,7]
[357302633,1743999086486,-1333.32,0.00040821,7]
[357302634,1743999086496,-500.0,0.00040821,7]
[357302635,1743999086507,-595.64,0.00040821,7]
[357302636,1743999086517,-500.0,0.00040821,7]
[357302637,1743999086527,-500.0,0.00040821,7]
[357302638,1743999086536,-501.28,0.00040821,7]
[357302639,1743999086547,-500.0,0.00040821,7]
[357302640,1743999086557,-545.46,0.00040821,7]
[357302641,1743999086567,-1298.7,0.00040821,7]
[357302642,1743999086577,-500.0,0.00040821,7]
[357302643,1743999086587,-504.30573399,0.00040821,7]
[357302644,1743999086598,-500.0,0.00040821,7]
[357302645,1743999086608,-579.21,0.00040821,7]
[357302646,1743999086618,-816.37,0.00040821,7]
[357302647,1743999086628,-500.0,0.00040821,7]
[357302648,1743999086638,-500.0,0.00040821,7]
[357302649,1743999086648,-485.97030123,0.00040821,7]
[357302650,1743999086658,-500.0,0.00040821,7]
[357302651,1743999086668,-528.93,0.00040821,7]
[357302652,1743999086678,-504.09,0.00040821,7]
[357302653,1743999086688,-539.99,0.00040821,7]
[357302654,1743999086698,-500.0,0.00040821,7]
[357302655,1743999086709,-500.0,0.00040821,7]
[357302656,1743999086720,-622.51,0.00040821,7]
[357302657,1743999086731,-500.0,0.00040821,7]
[357302658,1743999086741,-534.74645651,0.00040821,7]
[357302659,1743999086751,-1374.07,0.00040821,7]
[357302660,1743999086762,-500.0,0.00040821,7]
[357302661,1743999086773,-757.16,0.00040821,7]
[357302662,1743999086783,-500.0,0.00040821,7]
[357302663,1743999086794,-500.0,0.00040821,7]
[357302664,1743999086805,-500.0,0.00040821,7]
[357302665,1743999086815,-500.0,0.00040821,7]
[357302666,1743999086826,-871.18,0.00040821,7]
[357302667,1743999086836,-500.0,0.00040821,7]
[357302668,1743999086846,-426.55138151,0.00040821,7]
[357302669,1743999086857,-200.0,0.00040821,7]
[357302670,1743999086867,-500.0,0.00040821,7]
[357302671,1743999086877,-562.53,0.00040821,7]
[357302672,1743999086887,-500.0,0.00040821,7]
[357302673,1743999086898,-538.62653081,0.00040821,7]
[357302674,1743999086908,-622.82,0.00040821,7]
[357302675,1743999086919,-500.0,0.00040821,7]
[357302676,1743999086929,-500.0,0.00040821,7]
[357302677,1743999086939,-500.0,0.00040821,7]
[357302678,1743999086952,-500.0,0.00040821,7]
[357302679,1743999086962,-1670.91,0.00040821,7]
[357302680,1743999086972,-1175.6,0.00040821,7]
[357302681,1743999086983,-500.0,0.00040821,7]
[357302682,1743999086994,-503.97,0.00040821,7]
[357302683,1743999087005,-938.15,0.00040821,7]
[357302684,1743999087019,-515.78,0.00040821,7]
[357302685,1743999087137,-639.59,0.00040821,7]
[357302686,1743999087147,-1047.08,0.00040821,7]
[357302687,1743999087157,-500.0,0.00040821,7]
[357302688,1743999087167,-595.91,0.00040821,7]
[357302689,1743999087176,-500.0,0.00040821,7]
[357302690,1743999087186,-500.0,0.00040821,7]
[357302691,1743999087199,-500.0,0.00040821,7]
[357302692,1743999087210,-500.0,0.00040821,7]
[357302693,1743999087220,-500.0,0.00040821,7]
[357302694,1743999087230,-2427.28,0.00040821,7]
[357302695,1743999087240,-594.33,0.00040821,7]
[357302696,1743999087250,-500.0,0.00040821,7]
[357302697,1743999087259,-523.68,0.00040821,7]
[357302698,1743999087269,-702.99,0.00040821,7]
[357302699,1743999087279,-517.1964561,0.00040821,7]
[357302700,1743999087289,-690.62,0.00040821,7]
[357302701,1743999087299,-500.0,0.00040821,7]
[357302702,1743999087309,-1235.1,0.00040821,7]
[357302703,1743999087319,-500.0,0.00040821,7]
[357302704,1743999087329,-500.0,0.00040821,7]
[357302705,1743999087479,-1129.9,0.00040821,7]
[357302706,1743999087489,-2511.7,0.00040821,7]
[357302707,1743999087499,-500.0,0.00040821,7]
[357302708,1743999087510,-500.0,0.00040821,7]
[357302709,1743999087520,-882.15,0.00040821,7]
[357302710,1743999087530,-2115.76,0.00040821,7]
[357302711,1743999087540,-500.0,0.00040821,7]
[357302712,1743999087551,-470.09881826,0.00040821,7]
[357302713,1743999087561,-362.18706251,0.00040821,7]
[357302714,1743999087571,-500.0,0.00040821,7]
[357302715,1743999087581,-500.0,0.00040821,7]
[357302716,1743999087591,-500.0,0.00040821,7]
[357302717,1743999087601,-500.0,0.00040821,7]
[357302718,1743999087611,-500.0,0.00040821,7]
[357302719,1743999087620,-1244.29,0.00040821,7]
[357302720,1743999087630,-500.0,0.00040821,7]
[357302721,1743999087641,-500.0,0.00040821,7]
[357302722,1743999087651,-1957.15,0.00040821,7]
[357302723,1743999087661,-971.01,0.00040821,7]
[357302724,1743999087670,-500.0,0.00040821,7]
[357302725,1743999087680,-500.0,0.00040821,7]
[357302726,1743999087690,-573.33,0.00040821,7]
[357302727,1743999087702,-310.33229933,0.00040821,7]
[357302728,1743999088047,-189.66770067,0.00040821,7]
[357302729,1743999088057,-1079.38,0.00040821,7]
[357302730,1743999088067,-2231.25,0.00040821,7]
[357302731,1743999088079,-633.15,0.00040821,7]
[357302732,1743999088091,-500.0,0.00040821,7]
[357302733,1743999088103,-860.01,0.00040821,7]
[357302734,1743999088114,-1123.02,0.00040821,7]
[357302735,1743999088125,-500.0,0.00040821,7]
[357302736,1743999088136,-500.0,0.00040821,7]
[357302737,1743999088147,-500.0,0.00040821,7]
[357302738,1743999088158,-500.0,0.00040821,7]
[357302739,1743999088167,-515.47910787,0.00040821,7]
[357302740,1743999088178,-1176.27,0.00040821,7]
[357302741,1743999088188,-500.0,0.00040821,7]
[357302742,1743999088200,-500.0,0.00040821,7]
[357302743,1743999088210,-2998.3,0.00040821,7]
[357302744,1743999088219,-953.53,0.00040821,7]
[357302745,1743999088229,-500.0,0.00040821,7]
[357302746,1743999088239,-1355.54,0.00040821,7]
[357302747,1743999088249,-500.0,0.00040821,7]
[357302748,1743999088259,-3062.34,0.00040821,7]
[357302749,1743999088269,-500.0,0.00040821,7]
[357302750,1743999088278,-500.0,0.00040821,7]
[357302751,1743999088289,-798.12,0.00040821,7]
[357302752,1743999088299,-500.0,0.00040821,7]
[357302753,1743999088310,-1613.69,0.00040821,7]
[357302754,1743999088320,-3548.41,0.00040821,7]
[357302755,1743999088330,-500.0,0.00040821,7]
[357302756,1743999088341,-704.04,0.00040821,7]
[357302757,1743999088351,-2545.27,0.00040821,7]
[357302758,1743999088362,-500.0,0.00040821,7]
[357302759,1743999088372,-7458.22,0.00040821,7]
[357302760,1743999088382,-500.0,0.00040821,7]
[357302761,1743999088392,-1543.8,0.00040821,7]
[357302762,1743999088402,-1149.97,0.00040821,7]
[357302763,1743999088413,-500.0,0.00040821,7]
[357302764,1743999088423,-1198.06,0.00040821,7]
[357302765,1743999088435,-500.0,0.00040821,7]
[357302766,1743999088446,-635.38,0.00040821,7]
[357302767,1743999088456,-541.59,0.00040821,7]
[357302768,1743999088466,-1015.47,0.00040821,7]
[357302769,1743999088475,-546.01,0.00040821,7]
[357302770,1743999088485,-500.0,0.00040821,7]
[357302771,1743999088495,-1323.14,0.00040821,7]
[357302772,1743999088505,-500.0,0.00040821,7]
[357302773,1743999088515,-1756.05,0.00040821,7]
[357302774,1743999088526,-500.0,0.00040821,7]
[357302775,1743999088535,-577.2,0.00040821,7]
[357302776,1743999088545,-500.0,0.00040821,7]
[357302777,1743999088556,-508.2596149,0.00040821,7]
[357302778,1743999088566,-4122.85,0.00040821,7]
[357302779,1743999088576,-776.24,0.00040821,7]
[357302780,1743999088587,-500.0,0.00040821,7]
[357302781,1743999088597,-1159.91,0.00040821,7]
[357302782,1743999088607,-758.62,0.00040821,7]
[357302783,1743999088616,-1598.41,0.00040821,7]
[357302784,1743999088627,-557.22,0.00040821,7]
[357302785,1743999088636,-20494.34,0.00040821,7]
[357302786,1743999088645,-606.51,0.00040821,7]
[357302787,1743999088655,-500.0,0.00040821,7]
[357302788,1743999088665,-801.33,0.00040821,7]
[357302789,1743999088675,-500.0,0.00040821,7]
[357302790,1743999088685,-500.0,0.00040821,7]
[357302791,1743999088695,-500.0,0.00040821,7]
[357302792,1743999088705,-528.76,0.00040821,7]
[357302793,1743999088715,-500.0,0.00040821,7]
[357302794,1743999088724,-1791.73,0.00040821,7]
[357302795,1743999088734,-500.0,0.00040821,7]
[357302796,1743999088743,-500.0,0.00040821,7]
[357302797,1743999088752,-2408.79,0.00040821,7]
[357302798,1743999088761,-500.0,0.00040821,7]
[357302799,1743999088770,-500.0,0.00040821,7]
[357302800,1743999088780,-500.0,0.00040821,7]
[357302801,1743999088789,-976.13,0.00040821,7]
[357302802,1743999088798,-2860.97,0.00040821,2]
[357302803,1743999088808,-500.0,0.00040821,7]
[357302804,1743999088817,-500.0,0.00040821,7]
[357302805,1743999088826,-554.55,0.00040821,7]
[357302806,1743999088836,-500.0,0.00040821,7]
[357302807,1743999088846,-6441.92,0.00040821,7]
[357302808,1743999088855,-500.0,0.00040821,7]
[357302809,1743999088864,-562.22,0.00040821,7]
[357302810,1743999088873,-500.0,0.00040821,7]
[357302811,1743999088883,-1285.05,0.00040821,7]
[357302812,1743999088893,-6825.27,0.00040821,7]
[357302813,1743999088902,-500.0,0.00040821,7]
[357302814,1743999088911,-500.0,0.00040821,7]
[357302815,1743999088921,-533.02,0.00040821,7]
[357302816,1743999088931,-7038.46,0.00040821,7]
[357302817,1743999088941,-850.81,0.00040821,7]
[357302818,1743999088952,-500.0,0.00040821,7]
[357302819,1743999088962,-9271.27,0.00040821,7]
[357302820,1743999088972,-815.55,0.00040821,7]
[357302821,1743999088981,-740.56,0.00040821,7]
[357302822,1743999088991,-500.0,0.00040821,7]
[357302823,1743999089000,-7581.46,0.00040821,7]
[357302824,1743999089010,-2322.26,0.00040821,7]
[357302825,1743999089020,-1678.06,0.00040821,7]
[357302826,1743999089033,-500.0,0.00040821,7]
[357302827,1743999089043,-546.3,0.00040821,7]
[357302828,1743999089053,-500.0,0.00040821,7]
[357302829,1743999089063,-2239.86,0.00040821,7]
[357302830,1743999089072,-500.0,0.00040821,7]
[357302831,1743999089083,-749.51,0.00040821,7]
[357302832,1743999089093,-1992.21,0.00040821,7]
[357302833,1743999089103,-5222.49,0.00040821,7]
[357302834,1743999089114,-4754.1,0.00040821,7]
[357302835,1743999089123,-2107.47,0.00040821,7]
[357302836,1743999089134,-2901.78,0.00040821,7]
[357302837,1743999089144,-500.0,0.00040821,7]
[357302838,1743999089154,-500.0,0.00040821,7]
[357302839,1743999089164,-525.89,0.00040821,7]
[357302840,1743999089173,-1115.98,0.00040821,7]
[357302841,1743999089183,-1085.62,0.00040821,7]
[357302842,1743999089192,-1195.53,0.00040821,7]
[357302843,1743999089204,-500.0,0.00040821,7]
[357302844,1743999089213,-10765.04,0.00040821,7]
[357302845,1743999089223,-2187.41,0.00040821,7]
[357302846,1743999089232,-535.02,0.00040821,7]
[357302847,1743999089241,-500.0,0.00040821,7]
[357302848,1743999089251,-712.26,0.00040821,7]
[357302849,1743999089260,-568.12,0.00040821,7]
[357302850,1743999089269,-500.0,0.00040821,7]
[357302851,1743999089279,-1109.5,0.00040821,7]
[357302852,1743999089288,-6670.03,0.00040821,7]
[357302853,1743999089298,-675.86,0.00040821,7]
[357302854,1743999089307,-1071.0,0.00040821,7]
[357302855,1743999089317,-500.0,0.00040821,7]
[357302856,1743999089326,-568.72,0.00040821,7]
[357302857,1743999089336,-808.46,0.00040821,7]
[357302858,1743999089346,-500.0,0.00040821,7]
[357302859,1743999089356,-500.0,0.00040821,7]
[357302860,1743999089365,-500.0,0.00040821,7]
[357302861,1743999089374,-500.0,0.00040821,7]
[357302862,1743999089384,-4170.44,0.00040821,7]
[357302863,1743999089393,-1807.07,0.00040821,7]
[357302864,1743999089403,-500.0,0.00040821,7]
[357302865,1743999089412,-500.0,0.00040821,7]
[357302866,1743999089422,-500.0,0.00040821,7]
[357302867,1743999089432,-2267.94,0.00040821,7]
[357302868,1743999089442,-8180.17,0.00040821,7]
[357302869,1743999089453,-500.0,0.00040821,7]
[357302870,1743999089463,-500.0,0.00040821,7]
[357302871,1743999089472,-500.0,0.00040821,7]
[357302872,1743999089482,-500.0,0.00040821,7]
[357302873,1743999089490,-626.04623384,0.00040821,7]
[357302874,1743999089500,-537.36,0.00040821,7]
[357302875,1743999089509,-1000.0,0.00040821,90]
[357302876,1743999089519,-500.0,0.00040821,7]
[357302877,1743999089529,-500.0,0.00040821,7]
[357302878,1743999089538,-18560.06,0.00040821,7]
[357302879,1743999089547,-500.0,0.00040821,7]
[357302880,1743999089557,-8705.04,0.00040821,7]
[357302881,1743999089566,-807.06408442,0.00040837,7]
[357302882,1743999089576,-800.0,0.0004086,7]
[357302883,1743999089586,-550.0,0.00040864,2]
[357302884,1743999089596,-800.0,0.00040915,7]
[357302885,1743999089606,-800.0,0.00040969,7]
[357302886,1743999089616,-3000.0,0.00041,120]
[357302887,1743999089626,-156.0,0.00041,17]
[357302888,1743999089636,-800.0,0.00041017,7]
[357302889,1743999089646,-180.0,0.0004107,30]
[357302890,1743999089657,-241.55,0.0004108,120]
[357302891,1743999089667,-180.0,0.0004108,30]
[357302892,1743999089676,-2000.0,0.00041084,120]
[357302893,1743999089685,-2000.0,0.00041084,120]
[357302894,1743999089698,-2000.0,0.00041084,120]
[357302895,1743999089710,-2000.0,0.00041085,120]
[357302896,1743999089720,-150.5,0.0004109,120]
[357302897,1743999089731,-180.0,0.0004109,30]
[357302898,1743999089741,-511.42,0.00041095,7]
[357302899,1743999089752,-500.0,0.00041095,7]
[357302900,1743999089763,-509.35,0.00041095,7]
[357302901,1743999089774,-500.0,0.00041095,7]
[357302902,1743999089785,-150.05926203,0.00041095,7]
[357302903,1743999089796,-540.93,0.00041095,7]
[357302904,1743999089806,-500.0,0.00041095,7]
[357302905,1743999089816,-704.76,0.00041095,7]
[357302906,1743999089827,-1047.59,0.00041095,7]
[357302907,1743999089837,-500.0,0.00041095,7]
[357302908,1743999089847,-500.0,0.00041095,7]
[357302909,1743999089857,-500.0,0.00041095,7]
[357302910,1743999089867,-500.0,0.00041095,7]
[357302911,1743999089877,-150.09174559,0.00041095,7]
[357302912,1743999089887,-500.0,0.00041095,7]
[357302913,1743999089896,-1299.52,0.00041095,7]
[357302914,1743999089906,-500.0,0.00041095,7]
[357302915,1743999089915,-500.0,0.00041095,7]
[357302916,1743999089925,-589.31,0.00041095,7]
[357302917,1743999089935,-961.09,0.00041095,7]
[357302918,1743999089948,-766.96,0.00041095,7]
[357302919,1743999089958,-500.0,0.00041095,7]
[357302920,1743999089968,-500.0,0.00041095,7]
[357302921,1743999089977,-500.0,0.00041095,7]
[357302922,1743999089987,-500.0,0.00041095,7]
[357302923,1743999090137,-500.0,0.00041095,7]
[357302924,1743999090147,-500.0,0.00041095,7]
[357302925,1743999090157,-500.0,0.00041095,7]
[357302926,1743999090166,-500.0,0.00041095,7]
[357302927,1743999090176,-500.0,0.00041095,7]
[357302928,1743999090185,-500.0,0.00041095,7]
[357302929,1743999090199,-500.0,0.00041095,7]
[357302930,1743999090208,-500.0,0.00041095,7]
[357302931,1743999090218,-500.0,0.00041095,7]
[357302932,1743999090228,-500.0,0.00041095,7]
[357302933,1743999090238,-1006.09,0.00041095,7]
[357302934,1743999090247,-500.0,0.00041095,7]
[357302935,1743999090257,-500.0,0.00041095,7]
[357302936,1743999090266,-500.0,0.00041095,7]
[357302937,1743999090276,-519.19037785,0.00041095,7]
[357302938,1743999090285,-505.78,0.00041095,7]
[357302939,1743999090295,-694.82,0.00041095,7]
[357302940,1743999090305,-1406.25,0.00041095,7]
[357302941,1743999090314,-500.0,0.00041095,7]
[357302942,1743999090325,-1333.32,0.00041095,7]
[357302943,1743999090334,-508.52323975,0.00041095,7]
[357302944,1743999090343,-595.64,0.00041095,7]
[357302945,1743999090353,-500.0,0.00041095,7]
[357302946,1743999090362,-500.0,0.00041095,7]
[357302947,1743999090372,-501.28,0.00041095,7]
[357302948,1743999090381,-500.0,0.00041095,7]
[357302949,1743999090391,-545.46,0.00041095,7]
[357302950,1743999090401,-1298.7,0.00041095,7]
[357302951,1743999090410,-500.0,0.00041095,7]
[357302952,1743999090420,-500.0,0.00041095,7]
[357302953,1743999090430,-579.21,0.00041095,7]
[357302954,1743999090439,-816.37,0.00041095,7]
[357302955,1743999090454,-500.0,0.00041095,7]
[357302956,1743999090464,-500.0,0.00041095,7]
[357302957,1743999090473,-260.86172769,0.00041095,7]
[357302958,1743999090483,-528.93,0.00041095,7]
[357302959,1743999090492,-504.09,0.00041095,7]
[357302960,1743999090502,-539.99,0.00041095,7]
[357302961,1743999090511,-500.0,0.00041095,7]
[357302962,1743999090521,-153.83986071,0.00041095,7]
[357302963,1743999090530,-622.51,0.00041095,7]
[357302964,1743999090540,-500.0,0.00041095,7]
[357302965,1743999090550,-1374.07,0.00041095,7]
[357302966,1743999090559,-500.0,0.00041095,7]
[357302967,1743999090569,-757.16,0.00041095,7]
[357302968,1743999090579,-500.0,0.00041095,7]
[357302969,1743999090588,-165.37751259,0.00041095,7]
[357302970,1743999090597,-500.0,0.00041095,7]
[357302971,1743999090607,-500.0,0.00041095,7]
[357302972,1743999090616,-871.18,0.00041095,7]
[357302973,1743999090626,-500.0,0.00041095,7]
[357302974,1743999090636,-200.0,0.00041095,7]
[357302975,1743999090645,-163.99582037,0.00041095,7]
[357302976,1743999090655,-562.53,0.00041095,7]
[357302977,1743999090664,-500.0,0.00041095,7]
[357302978,1743999090674,-539.37519616,0.00041095,7]
[357302979,1743999090684,-622.82,0.00041095,7]
[357302980,1743999090694,-500.0,0.00041095,7]
[357302981,1743999090706,-500.0,0.00041095,7]
[357302982,1743999090715,-500.0,0.00041095,7]
[357302983,1743999090725,-500.0,0.00041095,7]
[357302984,1743999090735,-1670.91,0.00041095,7]
[357302985,1743999090744,-1175.6,0.00041095,7]
[357302986,1743999090755,-508.94074765,0.00041095,7]
[357302987,1743999090765,-503.97,0.00041095,7]
[357302988,1743999090775,-938.15,0.00041095,7]
[357302989,1743999090784,-515.78,0.00041095,7]
[357302990,1743999090794,-639.59,0.00041095,7]
[357302991,1743999090803,-1047.08,0.00041095,7]
[357302992,1743999090813,-500.0,0.00041095,7]
[357302993,1743999090822,-595.91,0.00041095,7]
[357302994,1743999090831,-500.0,0.00041095,7]
[357302995,1743999090841,-500.0,0.00041095,7]
[357302996,1743999090850,-500.0,0.00041095,7]
[357302997,1743999090860,-500.0,0.00041095,7]
[357302998,1743999090869,-500.0,0.00041095,7]
[357302999,1743999090879,-594.33,0.00041095,7]
[357303000,1743999090888,-2427.28,0.00041095,7]
[357303001,1743999090897,-500.0,0.00041095,7]
[357303002,1743999090907,-523.68,0.00041095,7]
[357303003,1743999090918,-702.99,0.00041095,7]
[357303004,1743999090927,-690.62,0.00041095,7]
[357303005,1743999090936,-500.0,0.00041095,7]
[357303006,1743999090948,-1235.1,0.00041095,7]
[357303007,1743999090957,-500.0,0.00041095,7]
[357303008,1743999090967,-500.0,0.00041095,7]
[357303009,1743999090976,-1129.9,0.00041095,7]
[357303010,1743999090985,-2511.7,0.00041095,7]
[357303011,1743999090995,-500.0,0.00041095,7]
[357303012,1743999091004,-500.0,0.00041095,7]
[357303013,1743999091014,-500.0,0.00041095,7]
[357303014,1743999091025,-882.15,0.00041095,7]
[357303015,1743999091036,-2115.76,0.00041095,7]
[357303016,1743999091045,-500.0,0.00041095,7]
[357303017,1743999091054,-500.0,0.00041095,7]
[357303018,1743999091063,-500.0,0.00041095,7]
[357303019,1743999091074,-500.0,0.00041095,7]
[357303020,1743999091083,-500.0,0.00041095,7]
[357303021,1743999091092,-500.0,0.00041095,120]
[357303022,1743999091101,-500.0,0.00041095,120]
[357303023,1743999091111,-500.0,0.00041095,120]
[357303024,1743999091122,-500.0,0.00041095,120]
[357303025,1743999091131,-511.35605201,0.00041095,120]
[357303026,1743999091140,-500.0,0.00041095,7]
[357303027,1743999091149,-1244.29,0.00041095,7]
[357303028,1743999091159,-500.0,0.00041095,7]
[357303029,1743999091168,-500.0,0.00041095,7]
[357303030,1743999091177,-1957.15,0.00041095,7]
[357303031,1743999091186,-971.01,0.00041095,7]
[357303032,1743999091197,-500.0,0.00041095,7]
[357303033,1743999091207,-500.0,0.00041095,7]
[357303034,1743999091216,-573.33,0.00041095,7]
[357303035,1743999091225,-500.0,0.00041095,7]
[357303036,1743999091235,-500.0,0.00041095,7]
[357303037,1743999091244,-1079.38,0.00041095,7]
[357303038,1743999091253,-2231.25,0.00041095,7]
[357303039,1743999091263,-633.15,0.00041095,7]
[357303040,1743999091272,-261.58444048,0.00041095,7]
[357303041,1743999091282,-860.01,0.00041095,7]
[357303042,1743999091292,-1123.02,0.00041095,7]
[357303043,1743999091302,-500.0,0.00041095,7]
[357303044,1743999091311,-500.0,0.00041095,7]
[357303045,1743999091321,-156.44211748,0.00041095,7]
[357303046,1743999091330,-500.0,0.00041095,7]
[357303047,1743999091339,-1176.27,0.00041095,7]
[357303048,1743999091349,-500.0,0.00041095,7]
[357303049,1743999091359,-500.0,0.00041095,7]
[357303050,1743999091369,-2998.3,0.00041095,7]
[357303051,1743999091379,-953.53,0.00041095,7]
[357303052,1743999091388,-500.0,0.00041095,7]
[357303053,1743999091398,-1355.54,0.00041095,7]
[357303054,1743999091407,-500.0,0.00041095,7]
[357303055,1743999091418,-3062.34,0.00041095,7]
[357303056,1743999091427,-500.0,0.00041095,7]
[357303057,1743999091436,-500.0,0.00041095,7]
[357303058,1743999091446,-798.12,0.00041095,7]
[357303059,1743999091455,-500.0,0.00041095,7]
[357303060,1743999091465,-1613.69,0.00041095,7]
[357303061,1743999091474,-3548.41,0.00041095,7]
[357303062,1743999091483,-500.0,0.00041095,7]
[357303063,1743999091492,-704.04,0.00041095,7]
[357303064,1743999091502,-2545.27,0.00041095,7]
[357303065,1743999091511,-500.0,0.00041095,7]
[357303066,1743999091521,-7458.22,0.00041095,7]
[357303067,1743999091530,-500.0,0.00041095,7]
[357303068,1743999091540,-1543.8,0.00041095,7]
[357303069,1743999091549,-1149.97,0.00041095,7]
[357303070,1743999091559,-500.0,0.00041095,7]
[357303071,1743999091569,-1198.06,0.00041095,7]
[357303072,1743999091579,-500.0,0.00041095,7]
[357303073,1743999091588,-635.38,0.00041095,7]
[357303074,1743999091598,-541.59,0.00041095,7]
[357303075,1743999091608,-1015.47,0.00041095,7]
[357303076,1743999091618,-546.01,0.00041095,7]
[357303077,1743999091628,-198.1627147,0.00041095,7]
[357303078,1743999091637,-1323.14,0.00041095,7]
[357303079,1743999091647,-500.0,0.00041095,7]
[357303080,1743999091657,-1756.05,0.00041095,7]
[357303081,1743999091666,-500.0,0.00041095,7]
[357303082,1743999091675,-577.2,0.00041095,7]
[357303083,1743999091685,-500.0,0.00041095,7]
[357303084,1743999091696,-4122.85,0.00041095,7]